bitfinex-derivatives/quotes_ETHF0:USTF0_20250528
["timestamp","ask_amount","ask_price","bid_price","bid_amount"]
[1748447674002,0.75981,2631.3,2631.2,0.76549163]
[1748447674501,2.7718,2631.4,2631.3,0.75981]
[1748447674697,0.114,2631.4,2631.3,1.99891]
[1748447674904,0.114,2631.4,2631.3,2.61251]
[1748447675907,0.87378,2631.4,2631.3,20.27451]
[1748447676897,0.87378,2631.4,2631.3,1.8527]
[1748447677204,0.75981,2631.3,2631.2,0.00569163]
[1748447677507,2.06351,2631.3,2631.2,0.00569163]
[1748447679301,2.06351,2631.3,2631.2,0.76553163]
[1748447679906,0.114,2631.4,2631.3,0.75981]
[1748447680107,0.114,2631.4,2631.3,2.66881]
[1748447681711,0.87378,2631.4,2631.3,2.66881]
[1748447682110,0.114,2631.4,2631.3,2.66881]
[1748447683908,0.87378,2631.4,2631.3,2.66881]
[1748447684106,0.87378,2631.4,2631.3,1.909]
[1748447684499,0.87378,2631.4,2631.3,2.66881]
[1748447685002,0.75981,2631.3,2631.2,0.00569163]
[1748447685314,2.10791,2631.3,2631.2,0.00569163]
[1748447690703,2.18254908,2631.3,2631.2,0.00569163]
[1748447691701,2.10791,2631.3,2631.2,1.28189163]
[1748447692210,2.10791,2631.3,2631.2,1.63e-06]
[1748447692398,5.97891,2631.3,2631.2,1.63e-06]
[1748447692602,6.05354908,2631.3,2631.2,1.63e-06]
[1748447693409,11.05354908,2631.3,2631.2,1.63e-06]
[1748447693808,11.35351465,2631.3,2631.2,1.63e-06]
[1748447695508,11.05354908,2631.3,2631.2,1.63e-06]
[1748447696414,6.05354908,2631.3,2631.2,1.63e-06]
[1748447697608,2.18254908,2631.3,2631.2,1.63e-06]
[1748447697813,6.05354908,2631.3,2631.2,1.63e-06]
[1748447699716,11.05354908,2631.3,2631.2,1.63e-06]
[1748447699922,12.10007691,2631.3,2631.2,1.63e-06]
[1748447700317,53.94731323,2631.3,2631.2,1.63e-06]
[1748447700815,50.07631323,2631.3,2631.2,1.63e-06]
[1748447701020,53.94731323,2631.3,2631.2,1.63e-06]
[1748447701315,50.07631323,2631.3,2631.2,1.63e-06]
[1748447701521,53.94731323,2631.3,2631.2,1.63e-06]
[1748447701719,48.94731323,2631.3,2631.2,1.63e-06]
[1748447701915,0.75998,2630.7,2630.6,1.3485]
[1748447702715,2.03098,2630.7,2630.6,1.3485]
[1748447703111,0.76004,2630.5,2630.4,0.00569163]
[1748447703418,3.96784,2630.5,2630.4,1.29769163]
[1748447706114,9.18814,2630.5,2630.4,0.00569163]
[1748447710228,9.18814,2630.5,2630.4,1.63e-06]
[1748447713634,7.83784,2630.5,2630.4,1.63e-06]
[1748447713834,7.83784,2630.5,2630.4,1.91440163]
[1748447714029,3.96784,2630.5,2630.4,1.91440163]
[1748447714326,7.83784,2630.5,2630.4,1.91440163]
[1748447714520,7.83784,2630.5,2630.4,2.54500163]
[1748447716122,3.96784,2630.5,2630.4,7.54500163]
[1748447716523,0.87403,2630.6,2630.5,0.76004]
[1748447716722,0.76003,2630.6,2630.5,1.2814]
[1748447717027,0.76004,2630.5,2630.4,1.25110163]
[1748447717222,0.76004,2630.5,2630.3,6.32920293]
[1748447717223,0.76007,2630.4,2630.3,6.32920293]
[1748447717423,0.76023,2629.9,2629.6,1.3058]
[1748447717622,3.871,2630.3,2629.9,0.7602]
[1748447717823,5.10793,2630.5,2629.7,5.10848]
[1748447718120,0.76012,2630.3,2630.2,0.76011]
[1748447718318,0.00570255,2630.5,2630.2,17.666]
[1748447718523,0.00570255,2630.5,2630.4,0.76007]
[1748447718733,3.96777,2630.8,2630.7,0.75998]
[1748447719029,0.75999,2630.7,2630.6,0.75999]
[1748447719234,3.2078,2630.8,2630.3,3.2078]
[1748447719426,3.2078,2631.2,2630.6,3.2078]
[1748447719627,3.21350255,2631.2,2630.8,0.75993]
[1748447719834,0.75988,2631.1,2631.0,3.2078]
[1748447720132,0.00570255,2631.2,2631.1,0.75987]
[1748447720328,0.76554255,2631.2,2631.1,0.75987]
[1748447720534,0.00570255,2631.2,2631.1,0.75987]
[1748447720735,0.00570255,2631.2,2631.0,1.3416]
[1748447720925,0.00570255,2631.2,2631.0,2.10148]
[1748447721124,0.75987,2631.1,2631.0,1.3416]
[1748447721631,0.00570255,2631.2,2631.1,0.75987]
[1748447721820,0.76554255,2631.2,2631.1,0.6737]
[1748447722223,0.76554255,2631.2,2631.1,1.43357]
[1748447722424,0.76554255,2631.2,2631.1,0.6737]
[1748447728838,0.76554255,2631.2,2631.1,1.43357]
[1748447729029,0.00570255,2631.2,2631.1,1.43357]
[1748447730335,1.04652783,2631.3,2631.2,0.75984]
[1748447730536,1.04652783,2631.3,2631.2,2.70834]
[1748447730836,1.04652783,2631.3,2631.2,7.70834]
[1748447731838,0.00570255,2631.5,2631.4,0.75978]
[1748447732343,5.10677,2632.1,2631.4,5.0]
[1748447732645,0.75972,2631.6,2631.5,4.62875]
[1748447732842,0.75972,2631.6,2631.5,5.1937]
[1748447733045,0.75972,2631.6,2631.5,1.3247]
[1748447734641,2.08252,2631.6,2631.5,1.3247]
[1748447737247,2.15715908,2631.6,2631.5,1.3247]
[1748447738250,2.08252,2631.6,2631.5,1.3247]
[1748447739048,0.75971,2631.7,2631.6,0.7597]
[1748447739447,0.75969,2631.7,2631.6,0.6499]
[1748447743155,3.86230255,2631.8,2631.5,1.3247]
[1748447743156,0.75972,2631.6,2631.5,1.3247]
[1748447743449,2.04852,2631.6,2631.5,1.3247]
[1748447745253,2.04852,2631.6,2631.2,18.9226]
[1748447745254,0.75981,2631.3,2631.2,18.9226]
[1748447745455,0.83444908,2631.3,2631.2,18.9226]
[1748447745651,0.83444908,2631.3,2631.2,19.68244]
[1748447746461,0.75981,2631.3,2631.2,19.68244]
[1748447746652,0.75981,2631.3,2631.2,20.96294]
[1748447747356,0.83444908,2631.3,2631.2,20.96294]
[1748447747749,0.83444908,2631.3,2631.2,20.2031]
[1748447748251,0.83444908,2631.3,2631.2,20.96294]
[1748447748450,0.83444908,2631.3,2631.2,20.2031]
[1748447749552,0.83444908,2631.3,2631.2,2.5461]
[1748447752060,0.83444908,2631.3,2631.2,1.9043]
[1748447752256,0.75987,2631.1,2631.0,21.524]
[1748447752556,0.75987,2631.1,2631.0,5.1343]
[1748447752758,0.75987,2631.1,2631.0,1.2663]
[1748447753459,0.75989,2631.0,2630.9,0.6396]
[1748447753751,2.07409,2631.0,2630.9,0.6396]
[1748447753958,0.75992,2630.9,2630.8,1.2663]
[1748447754146,2.07412,2630.9,2630.8,1.2663]
[1748447754351,2.07412,2630.9,2630.6,0.64530255]
[1748447754352,0.75998,2630.7,2630.6,0.64530255]
[1748447755055,2.02718,2630.7,2630.6,0.64530255]
[1748447758554,5.10749,2631.1,2630.7,0.75995]
[1748447758754,0.75992,2630.9,2630.8,1.234]
[1748447758956,0.75998,2630.7,2630.6,0.64530255]
[1748447759454,0.75998,2630.7,2630.6,0.00570255]
[1748447759761,1.43538,2630.7,2630.6,0.00570255]
[1748447760160,2.69598,2630.7,2630.6,0.00570255]
[1748447760362,1.43538,2630.7,2630.6,0.00570255]
[1748447760661,0.75998,2630.7,2630.6,0.00570255]
[1748447761360,2.03418,2630.7,2630.6,0.00570255]
[1748447763554,0.75998,2630.7,2630.6,0.00570255]
[1748447764364,2.07758,2630.7,2630.6,0.00570255]
[1748447769269,1.90028,2630.3,2629.8,0.76023]
[1748447769472,0.76021,2629.9,2629.8,1.2536]
[1748447769762,0.76021,2629.9,2629.7,0.6424]
[1748447769763,0.76024,2629.8,2629.7,0.6424]
[1748447769965,0.76024,2629.8,2629.6,1.2633]
[1748447769966,0.76027,2629.7,2629.6,1.2633]
[1748447770364,2.07817,2629.7,2629.6,1.2633]
[1748447772067,0.76033,2629.5,2629.4,2.89485347]
[1748447772265,0.76033,2629.5,2629.4,2.26305347]
[1748447772961,1.90097,2629.4,2628.8,3.16054964]
[1748447773156,4.5359,2629.3,2628.9,2.10148]
[1748447773369,0.7605,2628.9,2628.8,3.16054964]
[1748447773668,0.7605,2628.9,2628.8,5.26207964]
[1748447773869,0.7605,2628.9,2628.8,4.50154964]
[1748447774166,0.7605,2628.9,2628.8,3.16054964]
[1748447774959,2.0886,2628.9,2628.8,3.92107964]
[1748447775166,1.3281,2628.9,2628.8,5.26207964]
[1748447775472,2.0886,2628.9,2628.8,3.16054964]
[1748447775663,2.7192,2628.9,2628.8,3.16054964]
[1748447776570,2.7192,2628.9,2628.8,4.46474964]
[1748447778168,4.08239,2629.0,2628.8,4.46474964]
[1748447778365,4.0824,2629.0,2628.8,4.46474964]
[1748447778563,0.7605,2628.9,2628.8,4.46474964]
[1748447778763,4.08239,2629.0,2628.9,0.7605]
[1748447779071,3.3219,2629.0,2628.9,2.0071]
[1748447779371,4.08237,2629.0,2628.9,1.2466]
[1748447780068,0.7605,2628.9,2628.8,3.16054964]
[1748447780375,2.0626,2628.9,2628.8,3.16054964]
[1748447781371,2.0626,2628.9,2628.8,4.40714964]
[1748447783863,2.0626,2628.9,2628.8,3.16054964]
[1748447784069,7.0626,2628.9,2628.8,2.09680809]
[1748447784269,2.0626,2628.9,2628.8,2.09680809]
[1748447784467,7.0626,2628.9,2628.8,2.09680809]
[1748447785571,7.36058197,2628.9,2628.8,2.09680809]
[1748447786367,0.76073,2628.1,2628.0,4.51564237]
[1748447786574,7.83753,2628.1,2628.0,4.51564237]
[1748447787567,3.96853,2628.1,2628.0,4.51564237]
[1748447787767,0.76072,2628.2,2628.1,0.76073]
[1748447787973,0.00570255,2628.3,2628.1,1.9382]
[1748447788176,0.7607,2628.2,2628.1,1.9382]
[1748447788371,0.7607,2628.2,2628.1,0.6506]
[1748447789971,0.7607,2628.2,2628.1,1.41133]
[1748447790273,0.7607,2628.2,2628.1,0.6506]
[1748447790766,0.11980255,2628.3,2628.1,0.6506]
[1748447790966,0.88049255,2628.3,2628.1,1.41131]
[1748447791175,0.7607,2628.2,2628.1,0.6506]
[1748447791370,0.7607,2628.2,2628.1,1.41133]
[1748447791775,0.88049255,2628.3,2628.2,0.7607]
[1748447791972,0.11980255,2628.3,2628.2,0.7607]
[1748447792169,0.11980255,2628.3,2628.2,8.9685]
[1748447793976,0.88048255,2628.3,2628.2,8.9685]
[1748447794177,0.88048255,2628.3,2628.2,26.6405]
[1748447794771,0.88048255,2628.3,2628.2,3.9685]
[1748447794971,0.88048255,2628.3,2628.2,3.2078]
[1748447795177,0.7607,2628.2,2628.1,0.6506]
[1748447795773,0.7607,2628.2,2628.1,4.61913]
[1748447795969,0.7607,2628.2,2628.1,0.6506]
[1748447796385,0.7607,2628.2,2628.1,0.65822017]
[1748447797971,0.11980255,2628.3,2628.2,0.7607]
[1748447798282,0.11980255,2628.3,2628.2,5.7607]
[1748447798870,0.7607,2628.2,2628.1,18.33022017]
[1748447799975,0.7607,2628.2,2628.1,19.09095017]
[1748447800186,0.7607,2628.2,2628.1,1.41895017]
[1748447800377,0.7607,2628.2,2628.1,0.65822017]
[1748447800880,0.7607,2628.2,2628.1,1.41895017]
[1748447803275,0.88050255,2628.3,2628.2,0.7607]
[1748447803782,0.11980255,2628.3,2628.2,0.7607]
[1748447803979,0.11980255,2628.3,2628.2,5.7607]
[1748447805583,0.76047,2629.1,2629.0,0.76044]
[1748447805972,5.778,2629.5,2628.8,5.10912]
[1748447806184,0.76047,2629.1,2629.0,0.76045]
[1748447806377,3.8475,2629.5,2628.9,0.6196]
[1748447806682,0.76038,2629.4,2629.3,0.76036]
[1748447807078,0.00570255,2629.5,2629.4,0.76036]
[1748447808280,0.76603255,2629.5,2629.4,0.76036]
[1748447809185,0.76603255,2629.5,2629.4,2.67516]
[1748447809777,0.00570255,2629.5,2629.4,2.67516]
[1748447810296,0.00570255,2629.5,2629.4,14.75096]
[1748447812679,0.00570255,2629.5,2629.4,5.88296]
[1748447812883,0.00570255,2629.5,2629.4,27.41996]
[1748447813982,0.00570255,2629.5,2629.4,27.41696]
[1748447815488,0.00570255,2629.5,2629.4,9.75096]
[1748447815787,0.00570255,2629.5,2629.4,32.41696]
[1748447815984,0.114,2629.7,2629.6,0.7603]
[1748447816981,0.114,2629.7,2629.6,5.7603]
[1748447817184,0.00570255,2629.9,2629.8,0.76024]
[1748447817481,1.38827,2630.5,2630.1,1.90039]
[1748447817690,1.38827,2630.5,2630.4,0.76007]
[1748447817884,1.89957,2631.3,2630.8,0.75995]
[1748447818186,3.2078,2631.4,2630.8,3.2078]
[1748447818383,0.75989,2631.0,2630.9,1.2667]
[1748447819485,0.75995,2630.8,2630.7,0.00570255]
[1748447820183,8.96775,2630.8,2630.7,0.00570255]
[1748447820391,0.76024,2629.8,2629.7,3.2078]
[1748447820978,0.76024,2629.8,2629.4,2.583]
[1748447820979,0.76033,2629.5,2629.4,5.1712]
[1748447821178,1.8534,2629.7,2629.4,5.93154]
[1748447821399,0.76033,2629.5,2629.4,5.1712]
[1748447821690,0.76033,2629.5,2629.4,4.5106]
[1748447821890,0.76033,2629.5,2629.4,3.2078]
[1748447822886,1.8534,2629.7,2629.4,3.2078]
[1748447825484,1.8534,2629.7,2629.4,4.525]
[1748447828492,1.8534,2629.7,2629.4,3.2078]
[1748447829894,1.8534,2629.7,2629.4,4.524]
[1748447830088,1.8534,2629.7,2629.4,3.2078]
[1748447831387,1.8534,2629.7,2629.4,4.5467]
[1748447831587,1.2258,2629.7,2629.4,4.5467]
[1748447832190,0.00570255,2629.8,2629.4,4.5467]
[1748447841601,0.00570255,2629.8,2629.5,0.6749]
[1748447841801,0.00570255,2629.8,2629.6,1.8739]
[1748447842404,0.00570255,2629.8,2629.4,3.2078]
[1748447842599,7.0738,2629.7,2629.3,0.00570255]
[1748447842800,3.2078,2629.4,2629.3,0.00570255]
[1748447843199,8.2078,2629.4,2629.3,0.00570255]
[1748447843702,8.3987,2629.4,2629.3,0.00570255]
[1748447845312,4.5327,2629.4,2629.3,0.00570255]
[1748447845608,0.6629,2629.5,2629.3,0.00570255]
[1748447847818,1.9323,2629.5,2629.3,0.00570255]
[1748447849113,0.6629,2629.5,2629.3,0.00570255]
[1748447849911,4.4818,2629.7,2629.3,0.00570255]
[1748447850115,3.2078,2629.4,2629.3,0.00570255]
[1748447850306,3.2078,2629.4,2628.5,3.2078]
[1748447850613,3.2078,2629.1,2628.4,2.6649]
[1748447850812,5.784,2629.0,2628.4,2.6649]
[1748447851013,3.2078,2628.8,2628.4,2.6649]
[1748447851314,1.274,2628.7,2628.4,1.9912]
[1748447851508,1.9084,2628.7,2628.4,1.9912]
[1748447852905,0.644,2629.0,2628.5,3.2078]
[1748447853214,0.644,2629.0,2628.6,1.3033]
[1748447853515,1.9045,2629.0,2628.6,1.3033]
[1748447858210,0.644,2629.0,2628.6,1.3033]
[1748447859119,0.644,2629.0,2628.5,3.2078]
[1748447859315,1.2559,2628.9,2628.5,3.2078]
[1748447859516,1.2559,2628.9,2628.5,4.4719]
[1748447859716,1.90133,2628.8,2628.5,4.4719]
[1748447859917,0.76059,2628.6,2628.5,1.2641]
[1748447861616,0.76059,2628.6,2628.5,2.02472]
[1748447861920,0.76054,2628.8,2628.7,0.76056]
[1748447862615,0.76059,2628.6,2628.5,2.02471]
[1748447863422,0.76058,2628.7,2628.6,0.76056]
[1748447864017,0.76055,2628.8,2628.5,1.2641]
[1748447864323,0.76055,2628.8,2628.7,0.76054]
[1748447867621,0.76033,2629.6,2629.5,0.76031]
[1748447867923,0.76033,2629.6,2628.5,5.1301]
[1748447867924,0.76041,2629.3,2629.2,0.76038]
[1748447870021,0.76037,2629.4,2629.3,0.76036]
[1748447872615,0.76041,2629.2,2629.1,2.6561]
[1748447872820,0.7604,2629.3,2629.2,0.76039]
[1748447873016,1.90075,2629.6,2629.1,1.3116]
[1748447873324,0.76041,2629.3,2629.2,0.7604]
[1748447874024,0.75484361,2629.3,2629.2,0.7604]
[1748447874229,0.76037,2629.4,2629.3,0.76036]
[1748447874732,3.8672,2629.7,2629.1,1.3116]
[1748447875032,0.76031,2629.6,2629.5,0.7603]
[1748447875631,0.76035,2629.5,2629.4,0.76033]
[1748447877938,0.76041,2629.2,2629.1,1.3116]
[1748447878539,0.76041,2629.2,2629.1,2.07204]
[1748447880436,0.76041,2629.2,2628.7,3.2078]
[1748447880735,3.23,2629.4,2628.7,3.2078]
[1748447880736,0.76053,2628.8,2628.7,3.2078]
[1748447881139,0.76053,2628.8,2628.7,3.96836]
[1748447881443,3.96826,2629.1,2629.0,0.76047]
[1748447882242,0.76051,2628.9,2628.8,0.76051]
[1748447882836,0.76051,2628.9,2628.8,18.42151]
[1748447883142,0.76049,2629.0,2628.9,0.76048]
[1748447884038,3.96826,2629.1,2629.0,0.76047]
[1748447884241,0.76047,2629.0,2628.9,1.40349]
[1748447884542,0.76047,2629.0,2628.9,1.40348]
[1748447885443,3.2078,2629.1,2628.8,17.661]
[1748447885734,0.7605,2629.0,2628.8,18.3363]
[1748447885939,3.2078,2629.1,2629.0,0.76047]
[1748447886242,0.76044,2629.2,2628.9,1.90126]
[1748447886536,0.76044,2629.2,2629.1,0.76043]
[1748447887638,1.3197,2629.6,2629.1,3.2078]
[1748447887835,1.3197,2629.6,2629.2,1.9319]
[1748447888032,0.76039,2629.4,2629.3,1.958]
[1748447888228,0.7605,2628.9,2628.8,7.0738]
[1748447888431,0.7605,2628.9,2628.8,1.39683]
[1748447888642,0.7605,2628.9,2628.8,19.05783]
[1748447889335,0.7605,2628.9,2628.8,1.39683]
[1748447889539,0.7605,2628.9,2628.8,19.05783]
[1748447890839,0.76053,2628.8,2628.7,1.98514]
[1748447891040,0.76053,2628.8,2628.7,19.64614]
[1748447891233,0.76053,2628.8,2628.7,1.98514]
[1748447891433,0.76053,2628.8,2628.7,19.64614]
[1748447892139,6.56356,2629.1,2629.0,0.76047]
[1748447892341,3.96824,2629.1,2629.0,0.76047]
[1748447892838,0.76044,2629.1,2629.0,0.76047]
[1748447893151,1.4054,2629.3,2629.2,0.76041]
[1748447893638,2.7346,2629.3,2629.2,0.76041]
[1748447894543,0.76044,2629.2,2629.1,0.76042]
[1748447898339,2.74081,2629.3,2629.2,0.76041]
[1748447898640,1.40541,2629.3,2629.2,0.76041]
[1748447899044,3.23623,2629.5,2629.3,0.76036]
[1748447899045,0.76039,2629.4,2629.3,0.76036]
[1748447899941,0.76047,2629.0,2628.9,1.41539]
[1748447900141,0.76047,2629.0,2628.9,2.76389]
[1748447900340,0.76056,2628.8,2628.7,0.76053]
[1748447900541,0.76056,2628.8,2628.7,19.08923]
[1748447900742,0.76056,2628.8,2628.7,1.43023]
[1748447901047,0.76056,2628.8,2628.7,19.08923]
[1748447901346,0.76056,2628.8,2628.7,19.08926]
[1748447901543,0.76052,2628.9,2628.8,0.7605]
[1748447901744,1.41306,2629.1,2629.0,0.76047]
[1748447901948,0.6526,2629.1,2628.8,1.3233]
[1748447902149,2.64537,2629.1,2629.0,0.76047]
[1748447902345,0.76059,2628.6,2628.5,3.2078]
[1748447902644,0.76065,2628.4,2628.3,0.00570255]
[1748447903241,1.99295,2628.4,2628.3,0.76637255]
[1748447903449,1.99295,2628.4,2628.3,0.00570255]
[1748447907948,1.99295,2628.4,2628.3,1.33730255]
[1748447908348,1.99295,2628.4,2628.3,0.00570255]
[1748447911448,1.99295,2628.4,2628.3,1.30830255]
[1748447911948,1.99295,2628.4,2628.3,2.06897255]
[1748447912350,1.99295,2628.4,2628.3,1.30830255]
[1748447914450,1.99295,2628.4,2628.3,0.00570255]
[1748447923652,10.0943,2628.4,2627.2,3.862]
[1748447923855,0.76088,2627.6,2627.5,1.2493]
[1748447924054,5.10995,2627.7,2627.2,4.5018]
[1748447924254,0.76096,2627.3,2627.2,4.5018]
[1748447924454,0.76096,2627.3,2627.2,0.6398]
[1748447924754,0.76096,2627.3,2627.2,1.40079]
[1748447925547,1.89100255,2627.5,2627.2,0.6398]
[1748447925747,0.76094,2627.4,2627.3,2.02335]
[1748447925948,0.63070255,2627.5,2627.3,1.2624]
[1748447926152,0.00570255,2627.5,2627.4,0.76094]
[1748447926359,60.06670255,2627.5,2626.7,2.1895]
[1748447926551,1.90285,2626.7,2625.8,3.18566996]
[1748447926749,3.96917,2625.9,2625.8,3.18566996]
[1748447926956,3.2078,2625.9,2625.3,1.2624]
[1748447927154,3.2078,2625.4,2625.3,2.02394]
[1748447927349,0.00570255,2626.1,2626.0,2.81541]
[1748447927551,0.00570255,2626.1,2626.0,6.67741]
[1748447927750,0.00570255,2626.1,2626.0,11.67741]
[1748447927955,0.00570255,2626.1,2626.0,13.00301]
[1748447928551,0.1142,2626.2,2626.1,0.76131]
[1748447928758,3.2078,2626.4,2626.3,0.76125]
[1748447928959,3.2078,2626.4,2626.3,2.81532]
[1748447929161,3.2078,2626.4,2626.3,7.81532]
[1748447929954,0.00571352,2626.6,2626.5,0.7612]
[1748447930159,0.00571352,2626.6,2626.5,7.81527]
[1748447930856,0.00571352,2626.6,2626.5,29.65227]
[1748447931571,3.2078,2626.9,2626.8,0.76111]
[1748447931859,3.2078,2626.9,2626.8,2.81518]
[1748447934261,3.2078,2626.9,2626.8,7.81518]
[1748447934660,0.00571352,2627.1,2627.0,0.76105]
[1748447934962,0.00571352,2627.1,2627.0,6.67812]
[1748447935469,0.00571352,2627.1,2627.0,8.64152]
[1748447936661,0.00571352,2627.1,2627.0,13.64152]
[1748447937464,0.00571352,2627.1,2627.0,8.64152]
[1748447940470,0.00571352,2627.1,2627.0,26.55852]
[1748447941066,0.00571352,2627.1,2627.0,4.77852]
[1748447941267,0.00571352,2627.1,2627.0,26.55652]
[1748447942276,0.76673352,2627.1,2627.0,26.55652]
[1748447942573,0.00571352,2627.1,2627.0,25.92892]
[1748447942773,0.76673352,2627.1,2627.0,25.92892]
[1748447943272,0.76673352,2627.1,2627.0,8.02292]
[1748447943769,0.76673352,2627.1,2627.0,4.15992]
[1748447943969,0.76673352,2627.1,2627.0,8.02292]
[1748447944169,0.00571352,2627.1,2627.0,4.15992]
[1748447944362,0.00571352,2627.1,2627.0,8.02292]
[1748447947272,0.00571352,2627.1,2627.0,11.23072]
[1748447947674,0.00571352,2627.1,2627.0,8.02292]
[1748447948872,3.8333,2627.6,2627.5,0.76091]
[1748447949082,4.59418,2627.6,2627.5,2.05407]
[1748447949269,5.21808,2627.6,2627.5,2.05407]
[1748447949671,5.21808,2627.6,2627.5,2.81498]
[1748447951181,5.21808,2627.6,2627.5,0.76091]
[1748447951477,5.21808,2627.6,2627.5,18.62891]
[1748447955277,5.21808,2627.6,2627.5,17.868]
[1748447956582,0.76096,2627.4,2627.1,1.90256]
[1748447956779,0.76096,2627.3,2627.2,23.0379]
[1748447957381,0.76095,2627.4,2627.3,0.76093]
[1748447957680,0.76095,2627.4,2627.3,1.98783]
[1748447957879,0.76095,2627.4,2627.3,4.0419]
[1748447958886,2.01602,2627.5,2627.4,0.76093]
[1748447959183,2.01602,2627.5,2627.4,4.0978]
[1748447959781,1.2551,2627.5,2627.4,4.0978]
[1748447960182,2.01601,2627.5,2627.4,4.0978]
[1748447960587,1.2551,2627.5,2626.3,0.093]
[1748447960786,4.4572,2627.6,2626.6,3.976]
[1748447960787,0.76114,2626.7,2626.6,3.976]
[1748447961481,2.04474,2626.7,2626.6,3.976]
[1748447961787,0.76122,2626.4,2626.3,0.093]
[1748447961993,3.96902,2626.4,2626.3,19.97107]
[1748447962284,3.96902,2626.4,2626.3,0.093]
[1748447962883,3.2078,2626.7,2626.6,0.76117]
[1748447963084,3.96894,2626.7,2626.6,6.79124]
[1748447964187,0.76117,2626.6,2626.5,1.2592]
[1748447964389,2.68197,2626.6,2626.5,21.16227]
[1748447964579,2.68197,2626.6,2626.5,21.23690908]
[1748447964979,2.68197,2626.6,2626.5,0.07463908]
[1748447965590,0.76122,2626.4,2626.3,4.069]
[1748447965786,3.96902,2626.4,2626.3,23.1588]
[1748447965987,3.96902,2626.4,2626.3,25.21287]
[1748447966192,3.96902,2626.4,2626.3,5.3078]
[1748447966390,3.96902,2626.4,2626.3,23.1558]
[1748447966789,3.96902,2626.4,2626.3,19.99807]
[1748447966991,3.96902,2626.4,2626.3,0.093]
[1748447968293,3.96902,2626.4,2626.3,0.85425]
[1748447968494,3.96902,2626.4,2626.3,2.09325]
[1748447968890,3.2078,2626.4,2626.3,4.14732]
[1748447969195,2.56293,2626.9,2626.6,0.76117]
[1748447969196,3.96895,2626.7,2626.6,0.76117]
[1748447969394,3.96895,2626.7,2626.6,6.79224]
[1748447969595,0.76115,2626.7,2626.6,6.79224]
[1748447969893,3.96895,2626.7,2626.6,6.79224]
[1748447970995,0.76113,2626.8,2626.7,0.76111]
[1748447971195,0.76113,2626.8,2626.7,2.02241]
[1748447971391,0.76113,2626.8,2626.7,4.07648]
[1748447972489,0.76113,2626.8,2626.7,3.31537]
[1748447972695,0.76113,2626.8,2626.7,25.14337]
[1748447972998,2.72423,2626.8,2626.7,25.14337]
[1748447974295,2.72423,2626.8,2626.7,25.90451]
[1748447974597,1.39823,2626.8,2626.7,25.90451]
[1748447974897,1.39823,2626.8,2626.7,25.14337]
[1748447975297,0.76113,2626.8,2626.7,25.14337]
[1748447976394,0.76113,2626.8,2626.7,25.90451]
[1748447976600,0.1142,2626.9,2626.8,0.76111]
[1748447976802,0.1142,2626.9,2626.8,4.07818]
[1748447977005,0.87528,2626.9,2626.8,4.73938]
[1748447977205,0.1142,2626.9,2626.8,4.73938]
[1748447977394,3.2078,2627.3,2627.2,0.76099]
[1748447977698,3.96876,2627.3,2627.2,6.79206]
[1748447977902,3.2078,2627.3,2627.2,6.79206]
[1748447978398,3.96876,2627.3,2627.2,7.45326]
[1748447978605,3.96876,2627.3,2627.2,24.53727]
[1748447978902,3.96876,2627.3,2627.2,2.71527]
[1748447979091,3.96876,2627.3,2627.2,24.53627]
[1748447979490,3.96876,2627.3,2627.2,24.53227]
[1748447979896,3.96876,2627.3,2627.2,25.29326]
[1748447980094,3.96876,2627.3,2627.2,25.29026]
[1748447981301,3.96876,2627.3,2627.2,24.52927]
[1748447982599,3.96876,2627.3,2627.2,2.71527]
[1748447982799,0.76099,2627.2,2627.1,1.263]
[1748447983001,0.76105,2627.0,2626.9,3.976]
[1748447983197,3.96885,2627.0,2626.9,21.805]
[1748447983400,0.76108,2626.9,2626.8,1.2418]
[1748447983610,0.76114,2626.7,2626.6,5.2018]
[1748447983902,3.96894,2626.7,2626.6,3.96]
[1748447984100,3.2078,2626.7,2626.6,6.77524]
[1748447984299,3.2078,2627.1,2626.7,1.90285]
[1748447984504,3.96882,2627.1,2627.0,0.76105]
[1748447984806,3.96882,2627.1,2627.0,6.77512]
[1748447985806,3.2078,2627.1,2627.0,6.77512]
[1748447986214,3.96882,2627.1,2627.0,2.05407]
[1748447986508,5.30852,2627.1,2627.0,23.85607]
[1748447986908,5.30852,2627.1,2627.0,22.56305]
[1748447987609,0.76111,2626.9,2626.8,4.72107]
[1748447987909,0.76111,2626.9,2626.8,22.56507]
[1748447988305,0.76111,2626.9,2626.8,0.76107]
[1748447989505,0.76111,2626.9,2626.8,2.81514]
[1748447989704,0.76111,2626.9,2626.8,2.05407]
[1748447990010,0.76111,2626.9,2626.8,2.81518]
[1748447991100,0.76111,2626.9,2626.8,2.05407]
[1748447991311,0.76111,2626.9,2626.8,2.81518]
[1748447992614,0.76111,2626.9,2626.8,2.05407]
[1748447993314,0.76122,2626.4,2626.3,4.053]
[1748447993509,3.96902,2626.4,2626.3,2.14707]
[1748447993709,3.96902,2626.4,2626.3,23.95007]
[1748447994209,4.59662,2626.4,2626.3,6.10707]
[1748447994410,4.59662,2626.4,2626.3,6.86832]
[1748447994612,4.59662,2626.4,2626.3,6.10707]
[1748447994812,4.59662,2626.4,2626.3,2.90832]
[1748447996219,4.59662,2626.4,2626.3,2.14707]
[1748447996415,5.91202,2626.4,2626.3,2.14707]
[1748447996616,5.91202,2626.4,2626.3,4.25072]
[1748447998215,1.90289,2626.7,2626.3,4.25072]
[1748447998216,3.2078,2626.7,2626.3,4.25072]
[1748447998421,3.96899,2626.7,2626.6,2.81521]
[1748447998920,3.2078,2626.7,2626.6,2.81521]
[1748447999325,3.2078,2626.7,2626.6,6.77521]
[1748447999623,0.76106,2627.0,2626.9,0.76108]